bitfinex-derivatives/quotes_BTCF0:USTF0_20210108
["timestamp","ask_amount","ask_price","bid_price","bid_amount"]
[1610102277651,0.63138608,40061.0,40036.0,0.0888]
[1610102277852,0.63138608,40061.0,40003.0,0.13632608]
[1610102278252,0.63138608,40061.0,40004.0,0.03090115]
[1610102278451,0.63138608,40061.0,40004.0,0.12611115]
[1610102278853,0.63138608,40061.0,40005.0,0.03090039]
[1610102279352,0.49506,40061.0,40045.0,0.13632608]
[1610102279552,0.49506,40061.0,40005.0,0.03090039]
[1610102279553,0.49506,40061.0,40041.0,0.08247]
[1610102281156,0.49506,40061.0,40005.0,0.00033975]
[1610102281359,0.49506,40061.0,40019.0,0.13632608]
[1610102281556,0.49506,40061.0,40019.0,0.25659608]
[1610102281756,0.49506,40061.0,40020.0,0.00033924]
[1610102282657,0.07876,40061.0,40020.0,0.00033924]
[1610102282957,0.12674,40082.0,40020.0,0.00033924]
[1610102282958,3.2822,40050.0,40020.0,0.00033924]
[1610102283358,0.13632608,40021.0,40020.0,0.00033924]
[1610102284457,0.13632608,40021.0,40004.0,0.09521]
[1610102284658,0.13632608,40021.0,39966.0,2.10064972]
[1610102284958,0.13632608,40021.0,40005.0,0.00033895]
[1610102285158,0.13632608,40021.0,40005.0,0.10798895]
[1610102285357,0.13632608,40021.0,40005.0,0.10765]
[1610102285560,0.13632608,40006.0,40005.0,0.10765]
[1610102285859,0.10254,40037.0,39981.0,0.13632608]
[1610102286059,0.10254,40037.0,40005.0,0.00033895]
[1610102286258,0.10254,40037.0,40005.0,0.089]
[1610102286560,0.10254,40037.0,40006.0,0.00033897]
[1610102286561,0.0749,40036.0,40006.0,0.00033897]
[1610102286760,3.4294,40029.0,40006.0,0.00033897]
[1610102287160,0.0739,40035.0,40006.0,0.00033897]
[1610102287359,0.10254,40037.0,40006.0,0.00033897]
[1610102287659,0.10254,40037.0,40013.0,0.13632608]
[1610102287859,0.10254,40037.0,40013.0,0.13666505]
[1610102288059,0.2974,40060.0,40013.0,0.13666505]
[1610102288259,0.2974,40060.0,40014.0,0.00033897]
[1610102288559,0.2974,40060.0,40014.0,0.10461897]
[1610102288960,0.2974,40060.0,40015.0,0.00033894]
[1610102289161,0.2974,40060.0,40014.0,0.10428]
[1610102289359,1.5737,40059.0,40014.0,0.10428]
[1610102289560,0.13632608,40015.0,40014.0,0.10428]
[1610102289762,0.09695,40031.0,40014.0,0.10428]
[1610102291563,0.13632608,40015.0,40014.0,0.10428]
[1610102293563,0.21202608,40015.0,40005.0,0.089]
[1610102293864,0.21202608,40015.0,39981.0,0.08229]
[1610102294068,0.13632608,40015.0,39952.0,2.10429779]
[1610102294363,0.13632608,40015.0,39951.0,2.10437302]
[1610102294565,0.13632608,40015.0,39952.0,2.13448694]
[1610102294764,0.13632608,40015.0,39952.0,2.24616694]
[1610102295265,0.13632608,40015.0,39953.0,2.13403189]
[1610102295464,3.3834,40021.0,39996.0,0.13632608]
[1610102295664,1.5,40064.0,39996.0,0.13632608]
[1610102295867,3.6284,40034.0,39996.0,0.25361608]
[1610102296268,0.0756,40033.0,39996.0,0.25361608]
[1610102296467,0.16888,40033.0,39996.0,0.25361608]
[1610102296967,0.09328,40033.0,39996.0,0.25361608]
[1610102297177,4.079,40027.0,39996.0,0.11729]
[1610102297368,0.09328,40033.0,39996.0,0.11729]
[1610102297568,0.13632608,39997.0,39996.0,0.11729]
[1610102297771,3.6357,40021.0,39996.0,0.11729]
[1610102298370,5.1357,40021.0,39996.0,0.11729]
[1610102298772,3.6357,40021.0,39996.0,0.11729]
[1610102299176,5.1357,40021.0,39952.0,0.11168]
[1610102299372,1.5,40021.0,39952.0,0.11168]
[1610102299574,0.13632608,39953.0,39952.0,0.11168]
[1610102299778,4.0746,39967.0,39932.0,2.11451491]
[1610102299973,4.0746,39967.0,39952.0,0.00033913]
[1610102300176,4.0746,39967.0,39952.0,0.11967913]
[1610102300375,4.0746,39967.0,39933.0,0.00033923]
[1610102300872,4.0746,39967.0,39932.0,0.07836]
[1610102301175,3.00096,39967.0,39932.0,0.07836]
[1610102301475,0.13632608,39938.0,39937.0,0.13632608]
[1610102301672,3.00096,39967.0,39937.0,0.13632608]
[1610102302073,3.00096,39967.0,39937.0,0.13666542]
[1610102302376,3.00096,39967.0,39938.0,0.00033934]
[1610102302774,3.00096,39967.0,39933.0,0.00033936]
[1610102302972,2.0258,39967.0,39932.0,0.07836]
[1610102303174,1.53963,39967.0,39932.0,0.07836]
[1610102303574,1.53963,39967.0,39933.0,0.00033938]
[1610102304474,1.53963,39967.0,39932.0,0.07836]
[1610102305078,1.53963,39967.0,39898.0,3.3981]
[1610102305476,1.53963,39967.0,39954.0,0.13632608]
[1610102305678,0.0794,39988.0,39954.0,0.11743]
[1610102306880,3.403,39977.0,39954.0,0.11743]
[1610102307483,1.13632608,39955.0,39954.0,0.11743]
[1610102308880,1.13632608,39955.0,39935.0,1.0]
[1610102309281,1.13632608,39955.0,39935.0,0.9501]
[1610102309582,0.13632608,39937.0,39936.0,1.0]
[1610102309986,1.0,39955.0,39936.0,1.0]
[1610102310283,1.0,39955.0,39936.0,1.10073]
[1610102311483,0.13632608,39957.0,39954.0,1.0]
[1610102311684,0.13632608,39957.0,39954.0,1.12735]
[1610102313484,0.13632608,39957.0,39956.0,1.0]
[1610102314084,1.0,39987.0,39956.0,1.0]
[1610102315085,1.0,39987.0,39957.0,0.00033921]
[1610102315486,0.13632608,40028.0,39986.0,0.13632608]
[1610102315686,0.2968,40059.0,39986.0,0.22241608]
[1610102316687,0.03,40085.0,39986.0,0.22241608]
[1610102316688,0.03,40085.0,39987.0,0.00033897]
[1610102316887,0.03,40085.0,39988.0,3.425]
[1610102317087,0.03,40085.0,39989.0,0.00033894]
[1610102317492,0.13632608,40058.0,40049.0,0.13632608]
[1610102318691,0.0896,40077.0,40049.0,0.13632608]
[1610102318892,0.0896,40077.0,40049.0,0.22715608]
[1610102319091,0.0896,40077.0,40049.0,0.09083]
[1610102319591,0.13632608,40056.0,40054.0,0.13632608]
[1610102319894,0.0896,40077.0,40054.0,0.13632608]
[1610102321593,0.0896,40077.0,40061.0,0.13632608]
[1610102321797,0.0896,40077.0,40049.0,0.09083]
[1610102322394,0.0896,40077.0,40006.0,3.1066]
[1610102322695,4.1458,40079.0,40006.0,3.1066]
[1610102323000,0.07985,40077.0,40006.0,3.19806]
[1610102323596,0.13632608,40045.0,40026.0,0.13632608]
[1610102323798,0.13632608,40045.0,40039.0,1.0]
[1610102325096,0.0833,40058.0,40039.0,1.0]
[1610102325698,0.13632608,40056.0,40049.0,0.13632608]
[1610102326898,0.471295,40059.0,40049.0,0.13632608]
[1610102327098,0.471295,40059.0,40049.0,0.25613608]
[1610102327596,0.471295,40059.0,40058.0,0.13632608]
[1610102327798,0.471295,40059.0,40049.0,0.11981]
[1610102328198,0.471295,40059.0,40032.0,0.07918]
[1610102328998,0.471295,40059.0,40006.0,0.09146]
[1610102329199,0.471295,40059.0,40010.0,3.2078]
[1610102329398,0.471295,40059.0,40010.0,3.32987]
[1610102329599,0.471295,40059.0,40058.0,0.13632608]
[1610102329799,0.471295,40059.0,40058.0,6.13632608]
[1610102331904,0.471295,40059.0,40058.0,0.13632608]
[1610102332405,0.07985,40077.0,40058.0,0.13632608]
[1610102332606,0.2864,40110.0,40058.0,0.13632608]
[1610102333707,0.2864,40110.0,40053.0,0.09926]
[1610102333708,0.13632608,40086.0,40084.0,0.13632608]
[1610102333908,0.2864,40110.0,40084.0,0.13632608]
[1610102334408,4.057,40140.0,40084.0,0.13632608]
[1610102334608,0.29,40151.0,40084.0,0.13632608]
[1610102334807,0.29,40151.0,40084.0,3.23762608]
[1610102335710,0.29,40151.0,40090.0,0.13632608]
[1610102336909,1.5,40150.0,40090.0,0.13632608]
[1610102337511,0.29,40151.0,40090.0,0.13632608]
[1610102337814,0.13632608,40136.0,40090.0,0.13632608]
[1610102339511,0.29,40151.0,40090.0,0.13632608]
[1610102339711,0.13632608,40138.0,40090.0,0.13632608]
[1610102340917,0.29,40151.0,40090.0,0.13632608]
[1610102341617,0.13632608,40149.0,40141.0,0.13632608]
[1610102341816,0.26242608,40149.0,40141.0,0.13632608]
[1610102342018,0.26242608,40149.0,40115.0,3.4019]
[1610102342821,0.26242608,40149.0,40148.0,1.0]
[1610102344624,0.26242608,40149.0,40148.0,0.712]
[1610102344825,1.76242608,40149.0,40098.0,3.1786]
[1610102345024,1.76242608,40149.0,40071.0,0.2996]
[1610102345624,0.2944,40148.0,40105.0,0.13632608]
[1610102345826,1.5,40147.0,40105.0,0.13632608]
[1610102346926,1.5,40138.0,40119.0,1.0]
[1610102347626,0.13632608,40120.0,40119.0,1.0]
[1610102347827,1.72548608,40120.0,40119.0,1.0]
[1610102348527,1.72548608,40120.0,40119.0,0.1828]
[1610102348926,1.72548608,40120.0,40081.0,3.3274]
[1610102349631,1.58916,40120.0,40092.0,0.13632608]
[1610102349826,1.58916,40120.0,40081.0,3.3274]
[1610102350727,1.58916,40120.0,40046.0,0.2904]
[1610102350927,1.5,40098.0,40046.0,0.2904]
[1610102351129,1.62242,40098.0,40035.0,0.2831]
[1610102351429,0.12242,40098.0,40035.0,0.2831]
[1610102351628,0.13632608,40086.0,40085.0,0.13632608]
[1610102351929,0.12021,40086.0,40085.0,0.13632608]
[1610102353331,0.12242,40098.0,40085.0,0.13632608]
[1610102353733,0.12242,40098.0,40097.0,0.13632608]
[1610102354132,1.0,40148.0,40097.0,0.13632608]
[1610102354830,0.01936721,40154.0,40097.0,0.13632608]
[1610102355836,0.01936721,40154.0,40150.0,0.13632608]
[1610102361140,1.28850593,40182.0,40150.0,0.13632608]
[1610102361642,0.00030493,40181.0,40150.0,0.13632608]
[1610102361841,0.10003493,40181.0,40171.0,0.13632608]
[1610102362242,0.00030493,40180.0,40171.0,0.13632608]
[1610102363741,0.00030493,40180.0,40179.0,0.13632608]
[1610102364742,0.09973,40181.0,40179.0,0.13632608]
[1610102366844,1.28850593,40182.0,40179.0,0.13632608]
[1610102369348,1.27850593,40182.0,40179.0,0.13632608]
[1610102369850,1.08120593,40182.0,40179.0,0.13632608]
[1610102371450,1.07120593,40182.0,40179.0,0.13632608]
[1610102371950,1.07120593,40182.0,40180.0,0.5365]
[1610102373050,0.81060593,40182.0,40180.0,0.5365]
[1610102374554,0.24394785,40182.0,40180.0,0.5365]
[1610102376258,0.24394785,40182.0,40179.0,0.13632608]
[1610102376259,0.24394785,40182.0,40181.0,2.8788]
[1610102376861,1.52613756,40220.0,40181.0,2.8788]
[1610102377760,1.52613756,40220.0,40206.0,0.13632608]
[1610102378164,1.52613756,40220.0,40206.0,0.59082608]
[1610102378363,0.0749,40259.0,40206.0,0.59082608]
[1610102378765,1.75431358,40335.0,40206.0,0.59082608]
[1610102378766,0.2986,40336.0,40206.0,0.13632608]
[1610102379065,1.0,40329.0,40217.0,3.9954]
[1610102379765,0.13632608,40278.0,40231.0,0.13632608]
[1610102380264,1.0,40329.0,40231.0,0.13632608]
[1610102380666,0.285,40328.0,40231.0,0.13632608]
[1610102381766,0.13632608,40269.0,40231.0,0.13632608]
[1610102381965,0.285,40328.0,40231.0,0.13632608]
[1610102383671,3.9319,40286.0,40231.0,0.13632608]
[1610102383871,0.13632608,40261.0,40231.0,0.13632608]
[1610102384869,0.13632608,40261.0,40203.0,3.1601]
[1610102385771,3.9319,40286.0,40231.0,0.13632608]
[1610102385975,1.0,40330.0,40231.0,3.5471]
[1610102386374,0.00030436,40291.0,40205.0,1.5]
[1610102386573,0.09611436,40291.0,40204.0,0.1212]
[1610102386775,0.09611436,40291.0,40253.0,3.6303]
[1610102386974,0.09581,40291.0,40253.0,3.6303]
[1610102387874,0.09581,40291.0,40290.0,0.13632608]
[1610102388073,0.09581,40291.0,40290.0,0.62052608]
[1610102388773,0.01936721,40351.0,40290.0,0.62052608]
[1610102389873,0.01936721,40351.0,40290.0,0.13632608]
[1610102390173,0.01936721,40351.0,40291.0,3.2319]
[1610102391775,0.01936721,40351.0,40350.0,0.13632608]
[1610102392074,0.11416947,40291.0,40285.0,0.10842]
[1610102392274,0.10861,40305.0,40286.0,1.5]
[1610102392474,0.01873442,40410.0,40290.0,4.8728]
[1610102392876,0.01873442,40410.0,40290.0,4.97573]
[1610102393574,0.01873442,40410.0,40290.0,3.47573]
[1610102393778,0.01873442,40410.0,40409.0,0.13632608]
[1610102394576,0.01873442,40410.0,40338.0,1.33608878]
[1610102394783,0.11176442,40410.0,40352.0,0.07982]
[1610102395077,0.11176442,40410.0,40400.0,3.7459]
[1610102395478,1.71709912,40510.0,40400.0,3.7459]
[1610102395683,2.00288416,40533.0,40401.0,1.33608878]
[1610102395879,0.13632608,40526.0,40468.0,0.13632608]
[1610102396783,0.01609329,40526.0,40468.0,0.13632608]
[1610102396980,2.13742043,40569.0,40481.0,3.9425]
[1610102397387,0.00030319,40528.0,40481.0,3.9425]
[1610102397581,0.12029319,40528.0,40481.0,2.65781]
[1610102397780,0.12029319,40528.0,40481.0,2.23826]
[1610102398081,0.13632608,40482.0,40445.0,0.13632608]
[1610102398281,0.11943,40482.0,40445.0,0.13632608]
[1610102399181,0.12508,40482.0,40445.0,0.13632608]
[1610102399883,0.12508,40482.0,40481.0,0.13632608]
[1610102402282,0.13632608,40553.0,40481.0,0.13632608]
[1610102402783,0.1569,40634.0,40481.0,0.26307608]
[1610102402985,0.00030292,40633.0,40481.0,0.26307608]
[1610102403288,0.10162292,40633.0,40481.0,0.26307608]
[1610102403489,0.10132,40633.0,40481.0,0.26307608]
[1610102403888,0.13632608,40596.0,40578.0,0.13632608]
[1610102404185,0.12799,40596.0,40578.0,0.13632608]
[1610102404585,0.00846992,40596.0,40578.0,0.13632608]
[1610102404987,0.00846992,40596.0,40578.0,0.01057405]
[1610102405989,0.00846992,40596.0,40595.0,0.13632608]
[1610102406190,0.00846992,40596.0,40554.0,0.08271]
[1610102407193,0.00846992,40596.0,40481.0,0.62675]
[1610102407993,0.00846992,40596.0,40582.0,0.13632608]
[1610102408197,0.00846992,40596.0,40549.0,0.10268]
[1610102409296,0.10747,40606.0,40549.0,0.10268]
[1610102409497,0.10227,40655.0,40481.0,0.62675]
[1610102409697,0.10227,40655.0,40538.0,0.08476]
[1610102409896,0.13632608,40617.0,40615.0,0.13632608]
[1610102410097,0.21507608,40617.0,40538.0,0.08476]
[1610102410596,0.21507608,40617.0,40481.0,0.62675]
[1610102411896,0.07875,40617.0,40586.0,0.13632608]
[1610102412096,0.07875,40617.0,40519.0,0.08199]
[1610102412800,0.07875,40617.0,40578.0,2.0]
[1610102413999,0.07875,40617.0,40612.0,0.13632608]
[1610102414499,0.07875,40617.0,40578.0,2.0]
[1610102415300,0.12241,40617.0,40578.0,2.0]
[1610102415900,0.12241,40617.0,40616.0,0.13632608]
[1610102416601,0.12241,40617.0,40578.0,2.0]
[1610102418202,0.42684185,40596.0,40578.0,2.0]
[1610102418403,0.51640185,40596.0,40578.0,2.0]
[1610102419602,0.42684185,40596.0,40578.0,2.0]
[1610102420102,0.1251812,40596.0,40595.0,0.13632608]
[1610102420502,0.10227,40655.0,40595.0,0.13632608]
[1610102421102,1.0,40817.0,40595.0,0.13632608]
[1610102421103,0.13677163,40804.0,40595.0,0.13632608]
[1610102421504,1.0,40817.0,40595.0,0.13632608]
[1610102421905,0.13632608,40683.0,40673.0,0.13632608]
[1610102422107,0.22430608,40683.0,40673.0,0.13632608]
[1610102422507,0.08798,40683.0,40673.0,0.13632608]
[1610102423509,0.08798,40683.0,40589.0,0.08117]
[1610102423912,0.08798,40683.0,40638.0,0.13632608]
[1610102424112,0.08798,40683.0,40601.0,0.1193]
[1610102424810,0.01936721,40825.0,40706.0,3.32372]
[1610102425111,0.01936721,40825.0,40598.0,2.0]
[1610102425112,3.2924,40721.0,40610.0,0.10663]
[1610102425311,3.9476,40718.0,40610.0,0.10663]
[1610102425515,2.8107,40702.0,40610.0,0.10663]
[1610102425810,2.93268,40702.0,40610.0,0.10663]
[1610102426011,0.13632608,40611.0,40610.0,0.10663]
[1610102426214,0.13632608,40611.0,40598.0,2.0]
[1610102427414,0.08171,40613.0,40598.0,2.0]
[1610102428017,0.08171,40613.0,40612.0,0.13632608]
[1610102428215,0.13632608,40633.0,40612.0,0.13632608]
[1610102428415,3.7078,40688.0,40612.0,0.13632608]
[1610102428616,0.12198,40702.0,40612.0,0.13632608]
[1610102430117,0.13632608,40693.0,40677.0,0.13632608]
[1610102430416,0.08333,40693.0,40677.0,0.13632608]
[1610102431017,0.08333,40693.0,40611.0,0.1079]
[1610102432121,0.13632608,40677.0,40661.0,0.13632608]
[1610102432319,0.22202608,40677.0,40661.0,0.13632608]
[1610102432520,0.22202608,40677.0,40611.0,0.1079]
[1610102433721,0.22202608,40677.0,40599.0,0.12212]
[1610102433920,0.22202608,40677.0,40598.0,2.0]
[1610102434123,0.13632608,40633.0,40598.0,2.0]
[1610102434322,0.25150608,40633.0,40598.0,2.0]
[1610102436125,0.13632608,40599.0,40598.0,2.0]
[1610102436324,0.22604608,40599.0,40598.0,2.0]
[1610102436624,0.22604608,40599.0,40598.0,1.7463]
[1610102436825,0.22604608,40599.0,40481.0,0.2463]
[1610102437126,0.08972,40599.0,40391.0,1.80284663]
[1610102437328,0.08972,40599.0,40482.0,0.00033931]
[1610102437526,0.08972,40599.0,40482.0,0.12034]
[1610102437728,0.08972,40599.0,40483.0,0.00033931]
[1610102438133,0.13632608,40557.0,40550.0,0.13632608]
[1610102438331,0.25051608,40557.0,40550.0,0.13632608]
[1610102438531,0.11419,40557.0,40550.0,0.13632608]
[1610102439435,0.10105,40557.0,40550.0,0.13632608]
[1610102439937,0.10849,40571.0,40550.0,0.13632608]
[1610102440133,0.10162,40589.0,40556.0,0.13632608]
[1610102441235,0.10162,40589.0,40550.0,0.10108]
[1610102441433,0.10162,40589.0,40523.0,0.1098]
[1610102441934,0.4949,40588.0,40524.0,0.00033939]
[1610102442134,0.13632608,40525.0,40522.0,0.13632608]
[1610102442335,0.08714,40536.0,40522.0,0.13632608]
[1610102442737,0.10162,40589.0,40522.0,0.13632608]
[1610102442934,0.10162,40589.0,40522.0,0.22828608]
[1610102443439,0.10162,40589.0,40523.0,0.00033944]
[1610102443634,0.10162,40589.0,40522.0,0.22828608]
[1610102444135,0.12297,40636.0,40588.0,0.13632608]
[1610102444336,0.12297,40636.0,40588.0,0.21910608]
[1610102444736,0.12297,40636.0,40589.0,0.0003399]
[1610102445137,0.073,40696.0,40589.0,0.0003399]
[1610102445337,3.9016,40742.0,40589.0,0.0003399]
[1610102445640,0.00030164,40695.0,40589.0,0.0003399]
[1610102445837,0.07708,40713.0,40589.0,0.0003399]
[1610102446939,4.0175,40809.0,40589.0,0.0003399]
[1610102447440,4.0175,40809.0,40589.0,0.03048628]
[1610102447441,0.00804365,40808.0,40589.0,0.03048628]
[1610102447639,0.18293146,40808.0,40589.0,0.03048628]
[1610102447841,0.10853146,40808.0,40589.0,0.03048628]
[1610102448039,0.00030142,40807.0,40589.0,0.03048628]
[1610102448242,0.03,40798.0,40589.0,0.03048628]
[1610102448642,0.03,40798.0,40616.0,2.0]
[1610102448840,0.00030133,40797.0,40699.0,2.0]
[1610102449540,0.03,40798.0,40699.0,2.0]
[1610102449743,0.03,40798.0,40700.0,0.00034252]
[1610102450144,0.03,40798.0,40797.0,0.13632608]
[1610102450345,0.03,40798.0,40797.0,0.24111608]
[1610102450544,0.03,40798.0,40797.0,0.14111608]
[1610102453049,0.03,40798.0,40797.0,0.03632608]
[1610102453255,0.03,40798.0,40787.0,0.08774]
[1610102453660,0.11071,40798.0,40787.0,0.08774]
[1610102453856,0.11071,40798.0,40699.0,2.08973]
[1610102454252,0.11071,40798.0,40797.0,0.13632608]
[1610102454452,0.11071,40798.0,40750.0,0.0833]
[1610102455155,0.11071,40798.0,40699.0,2.0]
[1610102455654,3.3906,40770.0,40699.0,2.0]
[1610102455857,3.49454,40770.0,40699.0,2.0]
[1610102456256,3.189,40727.0,40699.0,2.0]
[1610102456455,0.1184,40727.0,40699.0,2.0]
[1610102456656,3.0239,40700.0,40699.0,2.0]
[1610102456855,3.13902,40700.0,40699.0,2.0]
[1610102457154,0.11512,40700.0,40616.0,0.11503]
[1610102457356,2.9087,40684.0,40579.0,1.61575811]
[1610102457556,2.9087,40684.0,40556.0,1.0]
[1610102457557,0.09262,40684.0,40562.0,1.62851]
[1610102457758,0.09262,40684.0,40556.0,1.0]
[1610102458257,0.09262,40684.0,40683.0,0.13632608]
[1610102458660,0.11512,40700.0,40683.0,0.23395608]
[1610102458969,1.0,40719.0,40683.0,0.23395608]
[1610102459360,2.8052,40806.0,40700.0,1.0]
[1610102459559,2.8052,40806.0,40700.0,1.08582]
[1610102459760,1.5540923,40844.0,40700.0,1.08582]
[1610102459959,3.4295,40851.0,40700.0,1.08582]
[1610102460160,0.13632608,40834.0,40797.0,0.13632608]
[1610102460359,1.0,40863.0,40797.0,0.13632608]
[1610102460861,1.0,40863.0,40619.0,1.35211608]
[1610102461059,1.69545702,40890.0,40618.0,1.6125761]
[1610102461060,0.09702,40832.0,40618.0,1.6125761]
[1610102461262,0.09702,40832.0,40620.0,1.61142469]
[1610102461463,0.09702,40832.0,40620.0,1.71956469]
[1610102461664,0.09702,40832.0,40624.0,1.61043199]
[1610102461864,0.09702,40832.0,40634.0,1.60366923]
[1610102462064,0.09702,40832.0,40634.0,0.11249]
[1610102462263,0.13632608,40794.0,40634.0,0.11249]
[1610102462464,0.25486608,40794.0,40634.0,0.11249]
[1610102463866,3.237,40782.0,40634.0,0.11249]
[1610102464067,3.33859,40782.0,40634.0,0.11249]
[1610102464267,0.13632608,40722.0,40706.0,0.13632608]
[1610102464468,0.25664608,40722.0,40706.0,0.13632608]
[1610102465171,0.4339,40721.0,40634.0,0.11249]
[1610102465368,0.25664608,40722.0,40634.0,0.11249]
[1610102465570,3.3916,40710.0,40634.0,0.11249]
[1610102465768,3.48281,40710.0,40634.0,0.11249]
[1610102466168,0.13632608,40659.0,40648.0,0.13632608]
[1610102466371,0.25111608,40659.0,40648.0,0.13632608]
[1610102466570,0.11479,40659.0,40648.0,0.13632608]
[1610102468369,0.11479,40659.0,40658.0,0.13632608]
[1610102468572,0.11846,40673.0,40658.0,0.13632608]
[1610102469173,0.09121,40710.0,40658.0,0.13632608]
[1610102470273,0.13632608,40701.0,40695.0,0.13632608]
[1610102470473,0.25008608,40701.0,40695.0,0.13632608]
[1610102470673,0.25008608,40701.0,40655.0,0.11319]
[1610102472373,0.11376,40701.0,40688.0,0.13632608]
[1610102472572,0.11376,40701.0,40669.0,0.08361]
[1610102472873,0.09121,40710.0,40701.0,1.0]
[1610102473074,0.12032,40722.0,40701.0,1.0]
[1610102473274,3.2609,40726.0,40701.0,1.0]
[1610102473775,1.5,40725.0,40668.0,0.11331]
[1610102473975,0.11213,40725.0,40668.0,0.11331]
[1610102474188,1.61213,40725.0,40668.0,0.11331]
[1610102474383,0.13632608,40669.0,40572.0,1.79656119]
[1610102474584,0.13632608,40669.0,40576.0,0.2789]
[1610102474782,2.9227,40664.0,40576.0,0.36437]
[1610102475076,0.13632608,40669.0,40576.0,0.36437]
[1610102476376,0.09331,40670.0,40627.0,0.13632608]
[1610102477079,0.09331,40670.0,40627.0,0.23060608]
[1610102478279,0.13632608,40637.0,40627.0,0.23060608]
[1610102478482,0.12336,40660.0,40627.0,0.23060608]
[1610102479282,0.12336,40660.0,40627.0,0.21060608]
[1610102479483,0.09331,40670.0,40627.0,0.21060608]
[1610102479784,0.08839,40679.0,40627.0,0.21060608]
[1610102479981,3.7667,40682.0,40627.0,0.21060608]
[1610102480383,0.13632608,40641.0,40627.0,0.09428]
[1610102480784,3.9751,40628.0,40627.0,0.09428]
[1610102482085,3.9751,40628.0,40617.0,0.10886]
[1610102482284,3.9751,40628.0,40627.0,0.13632608]
[1610102482484,3.9751,40628.0,40627.0,0.24825608]
[1610102482684,3.9751,40628.0,40627.0,0.11193]
[1610102483087,3.9751,40628.0,40618.0,0.07951]
[1610102484086,3.9751,40628.0,40576.0,0.36437]
[1610102485287,3.9751,40628.0,40527.0,0.09747132]
[1610102485586,3.9751,40628.0,40528.0,1.73185002]
[1610102485787,3.9751,40628.0,40529.0,0.00036195]
[1610102486287,3.9751,40628.0,40627.0,0.13632608]
[1610102486492,3.9751,40628.0,40618.0,0.11755]
[1610102486891,0.12726,40642.0,40618.0,0.11755]
[1610102487690,0.10112,40668.0,40618.0,0.11755]
[1610102487890,0.16271682,40670.0,40618.0,0.11755]
[1610102488294,0.13632608,40696.0,40669.0,0.13632608]
[1610102488692,2.7698,40714.0,40669.0,0.13632608]
[1610102489093,1.0,40710.0,40669.0,0.13632608]
[1610102490294,0.13632608,40683.0,40678.0,0.13632608]
[1610102490595,0.10725,40683.0,40678.0,0.13632608]
[1610102491396,0.10725,40683.0,40658.0,0.112]
[1610102492395,0.12731,40697.0,40682.0,0.13632608]
[1610102492997,3.465,40751.0,40682.0,0.23306608]
[1610102493395,0.00030144,40724.0,40682.0,0.23306608]
[1610102493596,0.09848,40724.0,40682.0,0.23306608]
[1610102494396,0.13632608,40703.0,40682.0,0.09674]
[1610102494799,3.8758,40697.0,40673.0,0.08658]
[1610102495000,0.12409,40697.0,40673.0,0.08658]
[1610102495199,2.7784,40680.0,40673.0,0.08658]
[1610102495498,2.88696,40680.0,40649.0,0.08012]
[1610102495799,1.5,40679.0,40577.0,1.7028699]
[1610102495998,3.7844,40657.0,40583.0,0.00036159]
[1610102496200,3.7844,40657.0,40571.0,0.00036159]
[1610102496398,3.7844,40657.0,40618.0,0.13632608]
[1610102496800,3.7844,40657.0,40615.0,0.11642]
[1610102497108,1.0,40629.0,40615.0,0.11642]
[1610102497299,0.4988,40627.0,40615.0,0.11642]
[1610102497601,0.19734074,40627.0,40615.0,0.11642]
[1610102497800,1.0,40629.0,40545.0,1.72386014]
[1610102498000,3.567,40608.0,40545.0,1.83182014]
[1610102498200,3.567,40608.0,40546.0,0.00036179]
[1610102498400,3.567,40608.0,40591.0,0.13632608]
[1610102498600,3.567,40608.0,40591.0,0.22612608]
[1610102499001,3.567,40608.0,40591.0,0.0898]
[1610102499205,5.0,40612.0,40591.0,0.0898]
[1610102500402,0.13632608,40592.0,40591.0,0.0898]
[1610102500702,0.13632608,40592.0,40545.0,0.10796]
[1610102501205,0.13632608,40592.0,40546.0,0.00036195]
[1610102501417,4.0955,40575.0,40546.0,0.00036195]
[1610102501604,3.88544654,40575.0,40546.0,0.00036195]
[1610102501804,3.88544654,40575.0,40545.0,0.10796]
[1610102502205,0.09164,40575.0,40482.0,1.77486181]
[1610102502505,1.5,40542.0,40474.0,0.13632608]
[1610102502805,1.61045,40542.0,40483.0,0.00036243]
[1610102503006,1.61045,40542.0,40483.0,0.08637]
[1610102503204,1.5,40500.0,40484.0,0.00036259]
[1610102503607,1.6269,40500.0,40431.0,1.80382643]
[1610102504106,1.6269,40500.0,40407.0,1.81429042]
[1610102504107,3.1192,40458.0,40407.0,1.81429042]
[1610102504409,0.13632608,40428.0,40409.0,1.81502442]
[1610102504608,2.91805638,40458.0,40432.0,0.13632608]
[1610102504805,2.91805638,40458.0,40432.0,0.08153]
[1610102506105,2.91805638,40458.0,40342.0,2.05828003]
[1610102506106,0.11608,40458.0,40351.0,1.83182641]
[1610102506309,3.0336,40433.0,40342.0,2.05828003]
[1610102506506,3.0336,40433.0,40332.0,1.83267992]
[1610102506706,0.12339,40442.0,40319.0,1.84018956]
[1610102507006,3.3379,40407.0,40360.0,0.10998831]
[1610102508109,3.7579,40374.0,40360.0,0.10998831]
[1610102508308,0.10618,40398.0,40360.0,0.10998831]
[1610102508607,3.67532608,40361.0,40360.0,0.12507]
[1610102508806,0.13632608,40361.0,40360.0,0.12507]
[1610102509009,3.49152608,40361.0,40360.0,0.12507]
[1610102509210,3.49152608,40361.0,40288.0,0.2834]
[1610102510410,3.3552,40361.0,40288.0,0.2834]
[1610102510822,0.11078,40430.0,40288.0,0.2834]
[1610102511011,0.10836,40414.0,40302.0,0.14256831]
[1610102511211,0.70602495,40482.0,40302.0,0.14256831]
[1610102511512,3.7197,40476.0,40306.0,3.165]
[1610102511912,3.7197,40476.0,40361.0,0.01]
[1610102512112,0.70305621,40521.0,40361.0,0.13544]
[1610102512312,3.4097,40506.0,40361.0,0.13544]
[1610102514213,1.5,40513.0,40361.0,0.13544]
[1610102514415,0.13632608,40373.0,40366.0,0.13632608]
[1610102514613,0.13632608,40373.0,40361.0,0.13544]
[1610102514914,0.09808,40391.0,40361.0,0.13544]